Cogmind - Beta 16 @@@ ROGUE MODE // 2025.11.18 @ 17:14:50 Player: Scringis Result: Self-destructed Performance ------------- Evolutions (5) 2500 Regions Visited (12) 2400 Robots Destroyed (130) 650 Value Destroyed (4904) 4904 Prototype IDs (12) 240 Alien Tech Used (0) 0 Bonus (1010) 1010 TOTAL SCORE: 11704 Bonus ------- Pacifist 200 High Alert Combat Kills 310 Entered DSFs 500 Cogmind --------- Core Integrity 63/1000 Matter 300/300 Energy 58/100 System Corruption 15% Temperature Cool (42) Movement Flying (35) Location -5/Factory Parts ------- > --- POWER (2) -------- (None) > --- PROPULSION (5) --- Improved Cesium-ion Thruster > --- UTILITY (6) ------ Improved Coolant Injector Phase Shifter > --- WEAPON (4) ------- (None) > --- INVENTORY (5) ---- Thunder Leg Thunder Leg Large Storage Unit Peak State ------------ > --- POWER ------------ Fission Core > --- PROPULSION ------- Armored Leg Armored Leg Armored Leg Armored Leg Thunder Leg > --- UTILITY ---------- Improved Coolant Injector Improved Coolant Injector Large Storage Unit Improved Transmission Jammer Thermal Shield Advanced Hacking Suite > --- WEAPON ----------- Improved Arc Projector Variable Charge Gun KE Penetrator KE Penetrator > --- INVENTORY -------- Armored Leg Armored Leg Armored Leg Armored Leg Armored Leg Thunder Leg Thunder Leg Thunder Leg Improved Cesium-ion Thruster Large Storage Unit Energy Well Phase Shifter EM Shield Magnetic Acceleration Cannon [Rating: 91] Favorites ----------- Power Light Deuterium Engine Engine Light Deuterium Engine Power Core Light Neutrino Core Propulsion Carbon-fiber Leg Treads Light Treads Leg Carbon-fiber Leg Flight Unit Cooled VTOL Module Utility Large Storage Unit Device Heat Sink Storage Large Storage Unit Hackware Advanced Hacking Suite Protection Hardened Medium Armor Plating Weapon Heavy Assault Rifle Energy Gun Arc Projector Energy Cannon Ion Cannon Ballistic Gun Heavy Assault Rifle Ballistic Cannon Antimatter Cannon Launcher Rocket Launcher Special Weapon Plasma Cutter Piercing Weapon Kinetic Spear Build | -11 -10 -9 -9 -9 -8 -8 -7 -6 -6 -6 -6 -5 ------- Run | Yrd Mat Mat Min Exi Min Mat Fac Fac Was Fac DSF Fac Slots Evolved 10 | . . 2 . . . 2 2 2 . . . 2 Power 1 | . . . . . . 1 . . . . . . Propulsion 3 | . . . . . . 1 . 1 . . . 1 Utility 4 | . . . . . . . 2 1 . . . 1 Weapon 2 | . . 2 . . . . . . . . . . Parts Attached 121 | 5 3 13 . . 3 34 13 3 . . . 47 Power 20 | 1 . 2 . . 1 6 3 1 . . . 6 Engine 14 | 1 . 2 . . 1 3 2 1 . . . 4 Core 6 | . . . . . . 3 1 . . . . 2 Reactor . | . . . . . . . . . . . . . Propulsion 26 | 2 . 3 . . . 7 3 . . . . 11 Treads 5 | 2 . 3 . . . . . . . . . . Leg 18 | . . . . . . 7 1 . . . . 10 Wheel . | . . . . . . . . . . . . . Hover . | . . . . . . . . . . . . . Flight 3 | . . . . . . . 2 . . . . 1 Utility 27 | 1 2 . . . 1 5 1 2 . . . 15 Device 16 | . 1 . . . 1 4 1 1 . . . 8 Storage 4 | 1 1 . . . . . . . . . . 2 Processor . | . . . . . . . . . . . . . Hackware 3 | . . . . . . . . 1 . . . 2 Protection 4 | . . . . . . 1 . . . . . 3 Artifact . | . . . . . . . . . . . . . Weapon 48 | 1 1 8 . . 1 16 6 . . . . 15 Energy Gun 11 | . . 2 . . . 3 1 . . . . 5 Energy Cannon 6 | . . 2 . . . 2 1 . . . . 1 Ballistic Gun 18 | 1 1 3 . . 1 7 3 . . . . 2 Ballistic Cannon 4 | . . . . . . . . . . . . 4 Launcher 6 | . . 1 . . . 3 . . . . . 2 Special Weapon 2 | . . . . . . 1 1 . . . . . Impact Weapon . | . . . . . . . . . . . . . Slashing Weapon . | . . . . . . . . . . . . . Piercing Weapon 1 | . . . . . . . . . . . . 1 Special Melee Weapon . | . . . . . . . . . . . . . Unidentified Prototypes 12 | . . 2 . . . 2 2 . . . . 6 Parts Lost 65 | . . 4 . . 2 18 9 . . . 3 29 Power 12 | . . 1 . . 1 3 1 . . . . 6 Propulsion 14 | . . 2 . . . 2 1 . . . 2 7 Utility 11 | . . . . . . 1 2 . . . 1 7 Weapon 28 | . . 1 . . 1 12 5 . . . . 9 Highest Loss Streak 11 | . . 1 . . 2 8 6 . . . 3 11 To Critical Strikes . | . . . . . . . . . . . . . Average Backups 8 | 1 1 4 11 12 12 12 12 2 4 5 5 4 Power 1 | . 1 . 2 2 2 . 1 . 1 1 1 . Propulsion . | . . . 1 1 . 1 . . . . . 2 Utility 4 | . . 1 4 4 5 6 7 1 3 4 4 1 Weapon 2 | . . 1 4 5 4 2 2 1 . . . . Tool/Special . | . . . . . . . . . . . . . Unused Backups 21 | . . 2 . . 1 2 5 . 1 . . 10 Power 1 | . . . . . 1 . . . . . . . Propulsion 7 | . . . . . . . . . . . . 7 Utility 9 | . . . . . . 1 5 . 1 . . 2 Weapon 4 | . . 2 . . . 1 . . . . . 1 Tool/Special . | . . . . . . . . . . . . . Average Slot Usage (%) 85 | . 93 87 100 100 99 82 95 30 33 33 18 72 Engine 8 | . 14 10 11 11 10 7 14 5 6 6 4 1 Core 1 | . . . . . . 3 . . . . . 4 Treads 8 | . 26 20 22 22 22 3 . . . . . . Leg 11 | . . . . . . 18 21 . . . . 16 Device 11 | . 11 11 11 11 11 8 14 5 6 6 4 12 Storage 8 | . 14 11 11 11 11 9 6 . . . . 4 Hackware 1 | . . . . . . . . 5 6 6 1 3 Protection 2 | . . . . . . . 6 . . . . 6 Energy Gun 6 | . . 3 11 11 3 2 11 . . . . 6 Energy Cannon 5 | . . 6 11 11 11 7 3 . . . . . Ballistic Gun 15 | . 25 23 22 22 28 19 12 . . . . 4 Ballistic Cannon 1 | . . . . . . . . . . . . 5 Peak Build Rating 91 | 5 7 20 20 20 21 38 50 18 19 19 19 91 Average Rating 33 | 3 6 12 20 20 20 25 44 16 18 19 10 61 On Entrance 15 | . 5 7 20 20 20 21 38 8 18 19 19 2 Avg Prop Armor Cover (%) 6 | . . . . . . 6 . . . . . 5 Naked Turns 52 | . . . . . . . 11 . . . 19 22 Heaviest Build 72 | 11 29 41 41 41 41 62 69 10 10 10 10 72 Greatest Support 87 | 40 40 43 43 43 43 49 54 18 18 18 18 87 Greatest Overweight (x) 13 | . 8 1 . . . 10 1 . . . . 13 Average Overweight (x) . | . . . . . . . . . . . . . Largest Inventory Capacity 15 | 8 15 15 15 15 15 15 15 5 5 5 5 15 Average Capacity 14 | 7 12 15 15 15 15 15 14 5 5 5 5 14 Most Carried 15 | 4 4 11 12 13 15 15 15 5 5 5 5 15 Average Carried 8 | 1 1 4 11 12 12 12 12 2 4 5 5 4 Final Capacity 15 | 8 15 15 15 15 15 15 5 5 5 5 5 5 Final Carried 13 | 1 2 10 12 13 12 12 4 3 5 5 5 3 Class Distribution -------------------- 30% | Gunner 24% | Tank 16% | Scavenger-Tank 16% | Mutant 8% | Scavenger-Gunner 3% | Sprinter Dominant Class ---------------- Mutant | -10/Materials Gunner | -9/Materials Gunner | -9/Mines Gunner | -9/Exiles Scavenger-Gunner | -8/Mines Gunner | -8/Materials Tank | -7/Factory Sprinter | -6/Factory Sprinter | -6/Waste Sprinter | -6/Factory Mutant | -6/DSF Scavenger-Tank | -5/Factory Resources | -11 -10 -9 -9 -9 -8 -8 -7 -6 -6 -6 -6 -5 ----------- Run | Yrd Mat Mat Min Exi Min Mat Fac Fac Was Fac DSF Fac Matter Collected 3914 | 195 . 426 183 . 282 1083 308 . . . 7 1430 Remotely . | . . . . . . . . . . . . . Salvage Created 5540 | . . 571 88 . 575 1913 605 . . . . 1788 Parts 295 | . . 40 5 . 33 111 33 . . . . 73 Haulers Intercepted 5 | . . . . . . 2 . . . . . 3 Recyclers Shooed 1 | . . . . . . . . . . . . 1 Parts Field Recycled . | . . . . . . . . . . . . . Retrieved Matter . | . . . . . . . . . . . . . Parts Self-Destructed . | . . . . . . . . . . . . . Prevented . | . . . . . . . . . . . . . Parts Restored . | . . . . . . . . . . . . . Kills | -11 -10 -9 -9 -9 -8 -8 -7 -6 -6 -6 -6 -5 ------- Run | Yrd Mat Mat Min Exi Min Mat Fac Fac Was Fac DSF Fac Combat Hostiles Destroyed 105 | . . 14 6 . 12 39 13 . . . . 21 Guns 63 | . . 11 6 . 5 25 5 . . . . 11 Cannons 24 | . . . . . 6 9 1 . . . . 8 AOE 17 | . . 3 . . 1 5 7 . . . . 1 Classes Destroyed 14 | . . 4 1 . 3 3 2 . . . . 1 Worker 5 | . . 2 . . . 2 1 . . . . . Builder 9 | . . . . . 1 5 . . . . . 3 Hauler 5 | . . . . . . 2 . . . . . 3 Recycler 4 | . . . . . 1 1 . . . . . 2 Mechanic 1 | . . . . . . . 1 . . . . . Operator 1 | . . . . . . 1 . . . . . . Swarmer 19 | . . . 6 . 4 4 5 . . . . . Grunt 51 | . . 8 . . 7 23 2 . . . . 11 Brawler 1 | . . 1 . . . . . . . . . . Duelist 3 | . . . . . 1 1 1 . . . . . Sentry 21 | . . 5 . . . 10 3 . . . . 3 Hunter 2 | . . . . . . . . . . . . 2 Programmer 7 | . . . . . . . 2 . . . . 5 Heavy 1 | . . . . . . 1 . . . . . . Best Kill Streak 10 | . . 5 3 . 4 7 6 . . . . 10 Combat Bots Only 6 | . . 4 3 . 4 5 5 . . . . 6 Max Kills in Single Turn 4 | . . 2 1 . 2 2 4 . . . . 2 Gunslinging . | . . . . . . . . . . . . . Exploded 3 | . . 1 . . 1 2 3 . . . . 1 Melee . | . . . . . . . . . . . . . Uniques/NPCs Destroyed . | . . . . . . . . . . . . . Combat | -11 -10 -9 -9 -9 -8 -8 -7 -6 -6 -6 -6 -5 -------- Run | Yrd Mat Mat Min Exi Min Mat Fac Fac Was Fac DSF Fac Hostile Shots Fired 1090 | . . 77 25 . 45 205 230 . . . 33 475 Missed 348 | . . 27 12 . 14 51 89 . . . 13 142 Hits 742 | . . 50 13 . 31 154 141 . . . 20 333 Melee 26 | . . 3 . . 1 2 6 . . . 14 . Projectile 716 | . . 47 13 . 30 152 135 . . . 6 333 AOE 3 | . . 1 . . . . . . . . 2 . Critical Strikes 40 | . . 3 . . 2 8 7 . . . 5 15 Actively Blocked 2 | . . . . . . . . . . . . 2 Damage Taken 11627 | . . 805 143 . 429 2705 1671 . . . 435 5439 Core 2354 | . . 232 14 . 8 421 375 . . . 367 937 Absorbed by Shields 536 | . . . . . . 145 236 . . . 39 116 Redirected to Shielding 52 | . . . . . . . . . . . . 52 Ignored by Resistances 333 | . . . . . . . . . . . . 333 Core Remaining (%) 60 | 100 100 . . . 36 23 46 . . . 56 . Volleys Fired 318 | . . 51 11 . 26 103 36 . . . . 91 Largest 4 | . . 4 4 . 4 4 4 . . . . 4 Hottest 236 | . . 126 151 . 151 178 227 . . . . 236 Shots Fired 890 | . . 102 40 . 100 294 121 . . . . 233 Gun 677 | . . 85 29 . 74 212 98 . . . . 179 Cannon 186 | . . 9 11 . 26 68 18 . . . . 54 Launcher 27 | . . 8 . . . 14 5 . . . . . Special . | . . . . . . . . . . . . . Kinetic 557 | . . 84 23 . 60 195 68 . . . . 127 Thermal 203 | . . 9 11 . 26 81 3 . . . . 73 Explosive 27 | . . 8 . . . 14 5 . . . . . Electromagnetic 103 | . . 1 6 . 14 4 45 . . . . 33 Robot Hit Streak 17 | . . 12 3 . 16 12 8 . . . . 17 Robot Miss Streak 10 | . . 3 8 . 6 5 10 . . . . 4 Penetration Max 1 | . . . . . . . 1 . . . . 1 Secondary Targets 4 | . . . . . . 2 1 . . . . 1 Max Gunslinging Chain 1 | . . . . . . 1 1 . . . . 1 Shots Hit Robots 515 | . . 60 11 . 54 173 68 . . . . 149 Core Hits 271 | . . 33 7 . 27 107 33 . . . . 64 Critical Kills 2 | . . 1 . . . 1 . . . . . . Critical Parts Destroyed 3 | . . 1 . . . . . . . . . 2 Critical Strikes 13 | . . 2 . . . 1 . . . . . 10 Burn 5 | . . . . . . . . . . . . 5 Destroy 5 | . . 2 . . . 1 . . . . . 2 Blast 3 | . . . . . . . . . . . . 3 Melee Attacks . | . . . . . . . . . . . . . Impact . | . . . . . . . . . . . . . Slashing . | . . . . . . . . . . . . . Piercing . | . . . . . . . . . . . . . Sneak Attacks . | . . . . . . . . . . . . . Combat Hostiles . | . . . . . . . . . . . . . Follow-up Attacks . | . . . . . . . . . . . . . Damage Inflicted 12320 | . 1 928 324 . 1138 4404 1616 . . . 1 3908 Guns 7306 | . . 582 154 . 638 2252 1010 . . . . 2670 Cannons 2641 | . . 70 71 . 437 932 121 . . . . 1010 Explosions 2251 | . . 276 90 . 50 1179 457 . . . . 199 Melee . | . . . . . . . . . . . . . Ramming 122 | . 1 . 9 . 13 41 28 . . . 1 29 Kinetic 6256 | . . 582 124 . 450 1994 820 . . . . 2286 Thermal 3321 | . . 70 161 . 487 1159 78 . . . . 1366 Explosive 1912 | . . 276 . . . 1179 457 . . . . . Electromagnetic 709 | . . . 30 . 188 31 233 . . . . 227 Impact . | . . . . . . . . . . . . . Slashing . | . . . . . . . . . . . . . Piercing . | . . . . . . . . . . . . . Highest Corruption 15 | . . 4 4 4 4 4 10 . . . . 15 Average Corruption 4 | . . 3 4 4 4 1 4 . . . . 8 Corruption Purged 5 | . . . . . . . 5 . . . . . Corruption Blocked . | . . . . . . . . . . . . . Effects 180 | . . 20 22 14 20 11 22 . . . . 71 Message Errors 42 | . . 1 9 4 3 1 2 . . . . 22 Matter Fused 37 | . . 7 5 3 1 2 5 . . . . 14 Heat Flow Errors 21 | . . 3 1 3 2 1 3 . . . . 8 Energy Discharges 21 | . . 2 4 1 4 2 3 . . . . 5 Parts Fused 5 | . . . 1 . 1 . . . . . . 3 Data Loss (minor) 19 | . . 1 1 3 3 1 4 . . . . 6 Data Loss (major) 8 | . . . . . 3 2 . . . . . 3 Misfires 13 | . . 6 1 . 1 . 3 . . . . 2 Misdirections 4 | . . . . . . . . . . . . 4 Weapon Failures 10 | . . . . . 2 2 2 . . . . 4 Overload Shots . | . . . . . . . . . . . . . Overflow Damage 124 | . . . 4 . 6 41 10 . . . . 63 Projectiles 25 | . . . 4 . 6 . 10 . . . . 5 Explosions 99 | . . . . . . 41 . . . . . 58 Melee . | . . . . . . . . . . . . . Knockbacks 12 | . . . . . . . . . . . . 12 Impact 1 | . . . . . . . . . . . . 1 Kinetic 10 | . . . . . . . . . . . . 10 Secondary 1 | . . . . . . . . . . . . 1 Self-Inflicted Damage 447 | . . 26 32 . . 127 . . . . . 262 Shots 11 | . . 1 1 . . 5 . . . . . 4 Rammed 10 | . 1 . 2 . 3 2 . . . . 1 1 Targets Rammed 19 | . 1 . 2 . 3 7 2 . . . 1 3 Kicked 9 | . . . . . . 5 2 . . . . 2 Crushed . | . . . . . . . . . . . . . Highest Temperature 565 | . . 244 321 190 242 356 242 . . . . 565 Average Temperature 103 | . . 66 75 93 95 108 52 . . . . 122 Received Heat Transfer 3356 | . . 309 . . 198 1064 61 . . . . 1724 Effects 26 | . . . . . 2 12 . . . . . 12 Shutdowns 5 | . . . . . . . . . . . . 5 Energy Bleed 2 | . . . . . . 1 . . . . . 1 Interference 14 | . . . . . 2 8 . . . . . 4 Matter Decay 1 | . . . . . . . . . . . . 1 Short Circuit 2 | . . . . . . 1 . . . . . 1 Damage (minor) 2 | . . . . . . 2 . . . . . . Siege Activations . | . . . . . . . . . . . . . Martial Activations . | . . . . . . . . . . . . . Shielding Activations . | . . . . . . . . . . . . . Robots Disrupted 2 | . . . . . . . . . . . . 2 Combat Hostiles 1 | . . . . . . . . . . . . 1 Robots Corrupted . | . . . . . . . . . . . . . Combat Hostiles . | . . . . . . . . . . . . . Parts Fried 3 | . . . . . 1 . 1 . . . . 1 Impact Corruptions . | . . . . . . . . . . . . . Robots Melted 1 | . . . . . . . . . . . . 1 Combat Hostiles 1 | . . . . . . . . . . . . 1 Parts Melted 12 | . . . . . 2 . 4 . . . . 6 Heat Transferred 5906 | . . 148 261 . 753 1755 55 . . . . 2934 Parts Sabotaged . | . . . . . . . . . . . . . Parts Stolen . | . . . . . . . . . . . . . Parts Stripped . | . . . . . . . . . . . . . Power Chain Reactions 2 | . . . 1 . 1 . . . . . . . Alert | -11 -10 -9 -9 -9 -8 -8 -7 -6 -6 -6 -6 -5 ------- Run | Yrd Mat Mat Min Exi Min Mat Fac Fac Was Fac DSF Fac Maximum Alert Level 3 | . . 1 . . . 3 1 . . . . 2 Low Security (%) 74 | 100 100 78 100 . 100 26 79 100 100 100 100 77 Level 1 14 | . . 21 . . . 15 20 . . . . 22 Level 2 10 | . . . . . . 54 . . . . . . Level 3 . | . . . . . . 2 . . . . . . Level 4 . | . . . . . . . . . . . . . Level 5 . | . . . . . . . . . . . . . High Security . | . . . . . . . . . . . . . Max Security . | . . . . . . . . . . . . . Peak Influence 703 | . 5 221 75 . 131 703 315 71 3 . 20 431 Initial 311 | . . . 45 . . . 311 71 3 . . 10 Average 137 | . . 141 17 . 54 397 106 36 1 . 8 91 Influence Increases 3746 | . 5 515 161 . 300 1298 398 19 . . 30 1020 Destroy 0b10 Robot/C 2100 | . . 280 120 . 240 780 260 . . . . 420 Destroy 0b10 Robot/NC 125 | . . 10 . . 10 55 10 . . . . 40 Destroy Leader 520 | . . 80 20 . 40 204 60 . . . . 116 Successful Hack 133 | . 5 43 . . 5 28 36 4 . . . 12 Disable Machine 300 | . . 30 . . . 90 15 . . . . 165 Destroy Structure 343 | . . 42 6 . 5 111 17 . . . . 162 Partial Spotted 30 | . . . . . . . . 15 . . . 15 Lose Combat Pursuer 195 | . . 30 15 . . 30 . . . . 30 90 Influence Decreases 3446 | . 5 398 278 . 300 612 938 155 10 . 10 740 Entered New Map 539 | . . . 72 . . . 375 75 7 . . 10 Time Decay 2307 | . 5 368 206 . 280 432 473 80 3 . . 460 Lost Part 600 | . . 30 . . 20 180 90 . . . 10 270 Squads Dispatched 26 | . . 2 . . 1 9 7 1 . . 1 5 Investigation 4 | . . 1 . . 1 . 1 1 . . . . Extermination 5 | . . . . . . . 2 . . . . 3 Reinforcement 11 | . . 1 . . . 6 1 . . . 1 2 Assault . | . . . . . . . . . . . . . Garrison 6 | . . . . . . 3 3 . . . . . Intercept . | . . . . . . . . . . . . . Searches Triggered . | . . . . . . . . . . . . . Construction Impeded 5 | . . . . . . 4 1 . . . . . Haulers Reinforced . | . . . . . . . . . . . . . Active Scanning Responses . | . . . . . . . . . . . . . Cargo Convoy Interrupts 1 | . . . . . . . 1 . . . . . Stealth | -11 -10 -9 -9 -9 -8 -8 -7 -6 -6 -6 -6 -5 --------- Run | Yrd Mat Mat Min Exi Min Mat Fac Fac Was Fac DSF Fac Distress Signals 10 | . . 2 . . 1 7 . . . . . . Communications Jammed 51 | . . . . . . . . . . . . 51 Distress Signals 50 | . . . . . . . . . . . . 50 Times Spotted 185 | . 2 22 7 . 12 52 31 . 6 . 6 47 Peak Tracking Total 12 | . 1 7 3 . 4 7 12 . 6 . 5 6 Tactical Retreats 10 | . . 1 1 . . 2 . . . . 2 4 Traps | -11 -10 -9 -9 -9 -8 -8 -7 -6 -6 -6 -6 -5 ------- Run | Yrd Mat Mat Min Exi Min Mat Fac Fac Was Fac DSF Fac Traps Triggered 13 | . 3 1 . . . 4 . 1 . . 2 2 Indirectly . | . . . . . . . . . . . . . Trap Hack Attempts . | . . . . . . . . . . . . . Triggered . | . . . . . . . . . . . . . Disarmed . | . . . . . . . . . . . . . Reprogrammed . | . . . . . . . . . . . . . Reused . | . . . . . . . . . . . . . Traps Extracted . | . . . . . . . . . . . . . Installed . | . . . . . . . . . . . . . Triggered . | . . . . . . . . . . . . . Machines | -11 -10 -9 -9 -9 -8 -8 -7 -6 -6 -6 -6 -5 ---------- Run | Yrd Mat Mat Min Exi Min Mat Fac Fac Was Fac DSF Fac Machines Disabled 20 | . . 2 . . . 6 1 . . . . 11 Max in Single Turn 5 | . . 1 . . . 1 1 . . . . 5 Garrison Access 3 | . . . . . . 1 1 . . . . 1 Machines Repaired . | . . . . . . . . . . . . . Machines Dismantled . | . . . . . . . . . . . . . Machines Sabotaged . | . . . . . . . . . . . . . Overloaded Fab Kills . | . . . . . . . . . . . . . Hacking | -11 -10 -9 -9 -9 -8 -8 -7 -6 -6 -6 -6 -5 --------- Run | Yrd Mat Mat Min Exi Min Mat Fac Fac Was Fac DSF Fac Machines Accessed 29 | . 1 7 . . 1 7 4 3 . 1 . 5 Terminals 19 | . 1 6 . . 1 5 2 2 . 1 . 1 Fabricators 2 | . . . . . . . . 1 . . . 1 Repair Stations . | . . . . . . . . . . . . . Recycling Units 1 | . . . . . . . . . . . . 1 Scanalyzers 3 | . . 1 . . . 1 . . . . . 1 Garrison Access 4 | . . . . . . 1 2 . . . . 1 Total Hacks 66 | . 3 17 . . 4 16 7 5 . 1 . 13 Successful 38 | . 1 12 . . 1 9 3 2 . 1 . 9 Failed 26 | . 2 4 . . 3 7 4 3 . . . 3 Catastrophic 2 | . . . . . . . 1 . . . . 1 Database Lockouts 2 | . . 1 . . . . . . . . . 1 Manual 49 | . 3 15 . . 4 13 3 4 . . . 7 Terminals 47 | . 3 14 . . 4 13 3 4 . 1 . 5 Fabricators 2 | . . . . . . . . 1 . . . 1 Repair Stations . | . . . . . . . . . . . . . Recycling Units 2 | . . . . . . . . . . . . 2 Scanalyzers 9 | . . 3 . . . 2 . . . . . 4 Garrison Access 6 | . . . . . . 1 4 . . . . 1 Terminal Hacks 7 | . . 2 . . . 1 . . . 1 . 3 Open DSF 1 | . . . . . . . . . . 1 . . Branch Access Points 2 | . . 1 . . . . . . . . . 1 Terminal Index 3 | . . 1 . . . 1 . . . . . 1 Reinforcement Status 1 | . . . . . . . . . . . . 1 Fabricator Hacks 2 | . . . . . . . . 1 . . . 1 Network Status 2 | . . . . . . . . 1 . . . 1 Repair Station Hacks . | . . . . . . . . . . . . . Recycling Unit Hacks . | . . . . . . . . . . . . . Scanalyzer 7 | . . 2 . . . 2 . . . . . 3 Retrieve Study 7 | . . 2 . . . 2 . . . . . 3 Garrison Access Hacks 3 | . . . . . . 1 1 . . . . 1 Seal Access 3 | . . . . . . 1 1 . . . . 1 Unauthorized Hacks 19 | . 1 8 . . 1 5 2 1 . . . 1 Terminals 19 | . 1 8 . . 1 5 2 1 . . . 1 Track 1 | . . 1 . . . . . . . . . . Botnet 17 | . 1 6 . . 1 5 2 1 . . . 1 Operators 1 | . . 1 . . . . . . . . . . Fabricators . | . . . . . . . . . . . . . Repair Stations . | . . . . . . . . . . . . . Recycling Units . | . . . . . . . . . . . . . Scanalyzers . | . . . . . . . . . . . . . Garrison Access . | . . . . . . . . . . . . . Data Cores Recovered . | . . . . . . . . . . . . . Used . | . . . . . . . . . . . . . Hacking Detections 22 | . 1 5 . . 1 5 4 2 . 1 . 3 Full Trace Events 6 | . . 2 . . 1 1 1 1 . . . . Feedback Events 1 | . . 1 . . . . . . . . . . Corruption 1 | . . 1 . . . . . . . . . . Feedback Blocked . | . . . . . . . . . . . . . Robot Schematics Acquired . | . . . . . . . . . . . . . Robots Built . | . . . . . . . . . . . . . Authchips . | . . . . . . . . . . . . . Time . | . . . . . . . . . . . . . Total Robot Build Rating . | . . . . . . . . . . . . . Part Schematics Acquired . | . . . . . . . . . . . . . Parts Built . | . . . . . . . . . . . . . Authchips . | . . . . . . . . . . . . . Time . | . . . . . . . . . . . . . Total Part Build Rating . | . . . . . . . . . . . . . Part Studies Acquired 7 | . . 2 . . . 2 . . . . . 3 Parts Repaired . | . . . . . . . . . . . . . Time . | . . . . . . . . . . . . . Parts Recycled . | . . . . . . . . . . . . . Recycled Matter . | . . . . . . . . . . . . . Retrieved Matter . | . . . . . . . . . . . . . Retrieved Components . | . . . . . . . . . . . . . Parts Scanalyzed . | . . . . . . . . . . . . . Part Schematics Acquired . | . . . . . . . . . . . . . Parts Damaged . | . . . . . . . . . . . . . Bothacking | -11 -10 -9 -9 -9 -8 -8 -7 -6 -6 -6 -6 -5 ------------ Run | Yrd Mat Mat Min Exi Min Mat Fac Fac Was Fac DSF Fac Used RIF Installer . | . . . . . . . . . . . . . Robots Hacked . | . . . . . . . . . . . . . Non-combat . | . . . . . . . . . . . . . Combat . | . . . . . . . . . . . . . Robot Hacks Applied . | . . . . . . . . . . . . . Relay Couplers Released . | . . . . . . . . . . . . . Fabnet Peak Effective % . | . . . . . . . . . . . . . Robots Rewired . | . . . . . . . . . . . . . Allies Hacked . | . . . . . . . . . . . . . Hacks Repelled . | . . . . . . . . . . . . . Allies | -11 -10 -9 -9 -9 -8 -8 -7 -6 -6 -6 -6 -5 -------- Run | Yrd Mat Mat Min Exi Min Mat Fac Fac Was Fac DSF Fac Total Allies 1 | . . . . . . . . . 1 . . . Largest Group 1 | . . . . . . . . . 1 . . . Highest-Rated Group 31 | . . . . . . . . . 31 . . . Highest-Rated Ally 31 | . . . . . . . . . 31 . . . Total Orders . | . . . . . . . . . . . . . Ally Attacks 7 | . . . . . . . . . 7 . . . Total Damage 82 | . . . . . . . . . 82 . . . Kills . | . . . . . . . . . . . . . Allies Corrupted . | . . . . . . . . . . . . . Allies Melted . | . . . . . . . . . . . . . Intel | -11 -10 -9 -9 -9 -8 -8 -7 -6 -6 -6 -6 -5 ------- Run | Yrd Mat Mat Min Exi Min Mat Fac Fac Was Fac DSF Fac Active Infowar (turns) 1903 | . . . . . . . . . . . . 1903 Jamming 1903 | . . . . . . . . . . . . 1903 Robot Analysis Total . | . . . . . . . . . . . . . Derelict Logs Recovered . | . . . . . . . . . . . . . Drone Launches . | . . . . . . . . . . . . . Drone Recoveries . | . . . . . . . . . . . . . Exploration | -11 -10 -9 -9 -9 -8 -8 -7 -6 -6 -6 -6 -5 ------------- Run | Yrd Mat Mat Min Exi Min Mat Fac Fac Was Fac DSF Fac Turns Passed 9298 | 79 389 960 819 569 695 1554 1687 165 32 17 61 2271 Spaces Moved 5014 | 48 229 476 486 355 367 663 768 283 84 53 120 1082 Core 152 | 7 2 . . . . 2 21 . . . 6 114 Treads 2111 | 41 227 476 486 355 367 159 . . . . . . Legs 2147 | . . . . . . 502 712 . . . . 933 Wheels . | . . . . . . . . . . . . . Hover . | . . . . . . . . . . . . . Flight 604 | . . . . . . . 35 283 84 53 114 35 Fastest Speed 32 | 50 160 160 160 160 160 120 32 32 32 32 32 35 Average Speed 152 | 143 162 166 160 160 160 160 187 32 32 32 34 166 Slowest Speed 700 | 160 450 240 160 160 160 550 200 32 32 32 50 700 Overloaded Moves . | . . . . . . . . . . . . . Propulsion Burnouts . | . . . . . . . . . . . . . Robots Hopped . | . . . . . . . . . . . . . Potential Cave-ins 7 | . . . 6 . . . . . . . . 1 Cave-ins Triggered . | . . . . . . . . . . . . . Exploration Rate (%) 48 | 4 30 57 98 85 69 66 20 8 67 2 93 25 Regions Visited 12 Branch Regions 3 Pre-discovered Areas . | . . . . . . . . . . . . . Known Exits Taken 2 | . . 1 . . . . . . . 1 . . Unknown Exits Taken 7 | 1 1 . 1 1 1 1 1 . . . . . Scrap Searched 2 | . . . 1 . 1 . . . . . . . Spaces Dug . | . . . . . . . . . . . . . Terrain Destroyed 302 | . . 43 6 . 5 127 14 . . . . 107 Melee . | . . . . . . . . . . . . . Projectile 29 | . . 1 2 . 1 4 . . . . . 21 AOE 273 | . . 42 4 . 4 123 14 . . . . 86 Terrain Rammed . | . . . . . . . . . . . . . Walls Destroyed . | . . . . . . . . . . . . . Machines Disabled . | . . . . . . . . . . . . . Actions | -11 -10 -9 -9 -9 -8 -8 -7 -6 -6 -6 -6 -5 --------- Run | Yrd Mat Mat Min Exi Min Mat Fac Fac Was Fac DSF Fac Total 6036 | 58 245 576 500 356 409 953 929 358 89 52 139 1372 Wait 301 | . . 2 . 1 2 89 71 68 . . . 68 Move 5003 | 47 228 475 485 354 366 662 767 283 83 52 119 1082 Hop . | . . . . . . . . . . . . . Pick Up 152 | 6 8 22 2 1 5 33 14 2 4 . . 55 Fast Attach . | . . . . . . . . . . . . . Attach 119 | 5 6 12 . . 2 32 12 4 . . . 46 Detach 15 | . . 3 . . . 6 2 1 . . . 3 Swap 32 | . 1 4 . . 2 8 9 . . . . 8 Drop 57 | . 1 7 . . 3 13 15 . 2 . . 16 Fire 318 | . . 51 11 . 26 103 36 . . . . 91 Melee . | . . . . . . . . . . . . . Ram 2 | . . . . . . . . . . . 1 1 Kick 9 | . . . . . . 5 2 . . . . 2 Crush 8 | . 1 . 2 . 3 2 . . . . . . Escape Stasis 19 | . . . . . . . . . . . 19 . Rewire . | . . . . . . . . . . . . . Trap . | . . . . . . . . . . . . . Miscellaneous 1 | . . . . . . . 1 . . . . . Route ------- -11/Scrapyard -10/Materials -9/Materials (discovered 4 exits: *Mat x2 / *Min x2) -9/Mines (discovered 3 exits: *Mat x2 / *Exi) -9/Exiles -8/Mines (discovered 2 exits: *Mat x2) -8/Materials -7/Factory -6/Factory -6/Waste -6/Factory -6/DSF -5/Factory (discovered 3 exits: [*Fac] / *Upp x2) History --------- Turn | Location | Event 40 | -11/Scrapyard | Discovered new exit (range 16) 80 | -11/Scrapyard | Entered Materials 291 | -10/Materials | Discovered new exit (range 5) 328 | -10/Materials | Build established: Mutant 469 | -10/Materials | Entered another Materials area 469 | -9/Materials | Evolved 2 slots: Weapon x2 538 | -9/Materials | Central database locked down 830 | -9/Materials | Discovered new exit (range 8) 914 | -9/Materials | Core integrity fell below 50% 1097 | -9/Materials | Build established: Gunner 1153 | -9/Materials | Discovered new exit (range 5) 1290 | -9/Materials | Identified exit to Mines 1429 | -9/Materials | Entered Mines 1430 | -9/Mines | Assembled infested the area 1436 | -9/Mines | Received a Rocket Launcher from a helpful Derelict 1613 | -9/Mines | Discovered new exit (range 5) 1867 | -9/Mines | Discovered new exit (range 6) 2219 | -9/Mines | Found a hidden stash of uninstalled traps 2235 | -9/Mines | Discovered new exit (range 5) 2248 | -9/Mines | Entered Exiles 2287 | -9/Exiles | Met 8R-AWN 2311 | -9/Exiles | Met EX-HEX 2373 | -9/Exiles | Met EX-BIN 2472 | -9/Exiles | Met EX-DEC 2525 | -9/Exiles | Visited The Gauntlet 2804 | -9/Exiles | Discovered new exit (range 10) 2817 | -9/Exiles | Entered Mines 2947 | -8/Mines | Discovered new exit (range 6) 3192 | -8/Mines | Discovered new exit (range 7) 3355 | -8/Mines | Build established: Scavenger-Gunner 3512 | -8/Mines | Entered Materials 3512 | -8/Materials | Evolved 2 slots: Power x1, Propulsion x1 4053 | -8/Materials | Garrison activated, responded to threat 4537 | -8/Materials | Core integrity fell below 50% 4571 | -8/Materials | Lost 8 parts (2p1n5w) 4836 | -8/Materials | Lost 5 parts (1n1u3w) 4972 | -8/Materials | Discovered new exit (range 7) 5066 | -8/Materials | Entered Factory 5066 | -7/Factory | Evolved 2 slots: Utility x2 5359 | -7/Factory | Build established: Tank 6342 | -7/Factory | Discovered new exit (range 15) 6438 | -7/Factory | Garrison activated, responded to threat 6488 | -7/Factory | Lost 3 parts (1n2w) 6711 | -7/Factory | Cargo convoy interrupted 6721 | -7/Factory | System corruption reached 10% 6741 | -7/Factory | Core integrity fell below 50% 6753 | -7/Factory | Entered another Factory area 6753 | -6/Factory | Evolved 2 slots: Propulsion x1, Utility x1 6769 | -6/Factory | Lost 6 parts (1p2u3w) 6918 | -6/Factory | Sucked down chute 6918 | -6/Factory | Entered Waste 6919 | -6/Waste | Met a frightened Derelict 6932 | -6/Waste | Spotted C-40 Crusher 6932 | -6/Waste | Spotted C-40 Crusher 6935 | -6/Waste | Spotted C-40 Crusher 6941 | -6/Waste | Spotted C-40 Crusher 6943 | -6/Waste | Spotted C-40 Crusher 6945 | -6/Waste | Discovered new exit (range 16) 6946 | -6/Waste | Spotted C-40 Crusher 6950 | -6/Waste | Entered Factory 6967 | -6/Factory | Identified exit to DSF 6967 | -6/Factory | Entered DSF 6974 | -6/DSF | Discovered new exit (range 14) 6986 | -6/DSF | Additional patrols routed to DSF 7028 | -6/DSF | Entered Factory 7028 | -5/Factory | Evolved 2 slots: Propulsion x1, Utility x1 7038 | -5/Factory | Lost 3 parts (2n1u) 7075 | -5/Factory | Identified exit to Upper Caves 7296 | -5/Factory | Build established: Mutant 7715 | -5/Factory | Discovered new exit (range 6) 8027 | -5/Factory | System corruption reached 10% 8068 | -5/Factory | Build established: Scavenger-Tank 8183 | -5/Factory | Central database locked down 8844 | -5/Factory | Lost 5 parts (2p2n1u) 9171 | -5/Factory | Build established: Tank 9219 | -5/Factory | Core integrity fell below 50% 9253 | -5/Factory | Lost 11 parts (2p1n4u4w) 9266 | -5/Factory | Core integrity fell below 20% 9299 | -5/Factory | Self-destructed Last Messages --------------- 09265_ Slug penetrates Wall. 09265_ Arm. Leg destroyed. 09267_ Dropped Lrg. Storage Unit. 09269_ Recycling unit begins recycling process. 09272_ Dropped Arm. Leg. 09273_ Acquired Hvy. Shock Bomb Launcher. 09280_ Slug penetrates Wall. 09289_ K-01 Serf collects debris. 09289_ Slug penetrates Neutrino Reactor. 09291_ Acquired 95 matter. 09291_ K-01 Serf collects debris. 09291_ Hvy. Shock Bomb Launcher destroyed. 09292_ Acquired 182 matter. 09294_ K-01 Serf collects debris. 09294_ Acquired 16 matter. 09295_ Slug penetrates Wall. 09295_ Acquired 17 matter. 09298_ K-01 Serf collects debris. 09298_ Slug penetrates Wall. 09299_ Hvy. Shock Bomb Launcher destroyed. Map ----- +----------------------------------------------------+ | ??????????????????????????????? "" ???????? | | ???????????????????????????????# ? ??????? | | ???????????????????????????????# """ ?????? | | ???????????????????????????????# """ ??? | | ???????????????????????????????# """ ??? | | ?????????????????############### ????? | | ?????????????????# ! + """ "??? | | ?????????????????# """ = ! ## """ "?? | | ?????????????????# """ !! ## ^""" ? | | ?????????????????# """ ### ? | | ?????????????????# #?#= """ #????? | | ?????????????????# """ """ #?#== """ #????? | | ?????????????????# """ """ #?#!=! """ #????? | | ?????????????????# """ """ #?#=! #????? | | ?????????????????#! #?## """ ##???? | | ?????????????????# #??# """ #???? | | ?????????????????# #??# """ #???? | | ?????????????????# #??## #???? | | ?????????????????#######x######???# #???? | | ???????????########## % #?????# #???? | | ?????????? %% ! ####### + | | ????????? % %k% ! #???? | | ????????? % % % % %%############ #???? | | ????????? !* ###?????????## ###???? | | ????????? !% #????????????? #?????? | | ??????????? ######### @ #????????????? #?????? | | ????????????????????### ########???????# #?????? | | ??????????????#####?### # #???????# #?????? | | ??????????????# ? # # "" #########/####### | | ??????????????# | """ # #""" " ## # | | ??????????????# """ # #"T " ## # | | ??????????????#= """ # #""" " ## #= | | ??????????????# # # "" " ## "" #[ | | ??????????????# """ # # " ## " /%% | | ??????????????# """ # # | " ## """ #[ | | ??????????????# """ # # " ## """ #! | | ?????????H????# # # " ## """ # | | ??????????????# # # ] " ## # | | ??????????????# "" "" + # ## # | | ??????????????# ""R"" # ####+#### ! #] | | ??????????????# """" # ## #= | | ??????????????######### ########/#/#####+ | | ?????????????? % | | ???????????? % | | ????????????? """"""""" | | ????????????? ###### | | ?????????????####### #????# | | ???????????????????# "" #????####+####### | | ???????????????????# "" #????# ##? | | ???????????????????# F" #????# """"" #?? | +----------------------------------------------------+ Best States ------------- Heat Dissipation 61 Coolant Potential 80 Energy Generation 32 Energy Capacity 480 Matter Stores 300 Matter Capacity 300 Sight Range 16 Terrain Scan Density 10 Jamming Range 14 Additional Mass Support 9 Armor Coverage 300 Resistance: TH 20 Core Shielding 30 Evasion (%) 70 Recoil Reduction 2 Offensive Hacking 14 Item Schematics ----------------- None Robot Schematics ------------------ None Fabricated ------------ Nothing Repaired ---------- Nothing Studied --------- Lgt. Assault Rifle | -9/Materials | Hacked Assault Rifle | -9/Materials | Hacked Hvy. Assault Rifle | -8/Materials | Hacked Missile Launcher | -8/Materials | Hacked Carbon-fiber Leg | -5/Factory | Hacked KE Penetrator | -5/Factory | Hacked Variable Charge Gun | -5/Factory | Hacked Alien Tech Used ----------------- None Achievements -------------- None Challenges ------------ None Game ------ Seed MagneticHybridCompressor Manual? 0 Play Time 00:58:00 Cumulative 53.4 hours Start 2025.11.18 @ 16:17:34 End 2025.11.18 @ 17:14:50 Sessions 1 Manual Loads 0 Difficulty Rogue Special Mode None Game No. 148 Rogue 148 Adventurer 0 Explorer 0 Win Type - Total 0 Types 0/0/0/0/0/0/0/0/0/0 Lore% 32 Gallery% 33 Achievement% 27 Wizard Run 0 Options --------- Layout 1 ASCII 0 Keyboard 0 Movement Numpad Keybinds 0 Fullscreen 2 Font 24/Smallcaps Map View 50x35 Zoom Use 0% Tactical HUD 1 Map Filters NONE Filters NONE Steam 1 RUN: b601b3ee-6cba-43ea-8475-1d0b1140264c